bitfinex-derivatives/quotes_ETHF0:USTF0_20250430
["timestamp","ask_amount","ask_price","bid_price","bid_amount"]
[1746006313098,6.35789074,1808.4,1808.3,2.72083]
[1746006314196,0.8537,1808.4,1808.3,2.72083]
[1746006315095,5.49329074,1808.4,1808.3,1.10573]
[1746006315697,0.8537,1808.4,1808.3,1.10573]
[1746006316000,1.7379,1808.5,1808.4,1.10567]
[1746006316199,5.50359074,1808.6,1808.5,1.10561]
[1746006316590,0.864,1808.6,1808.5,1.10561]
[1746006316795,2.6019,1808.6,1808.5,2.81771]
[1746006316995,3.70745,1808.6,1808.5,1.10561]
[1746006317503,2.6019,1808.6,1808.5,1.10561]
[1746006318403,3.70745,1808.6,1808.5,1.10561]
[1746006318599,8.34704074,1808.6,1808.5,1.10561]
[1746006319203,7.24149074,1808.6,1808.5,1.10561]
[1746006319403,5.50359074,1808.6,1808.5,1.10561]
[1746006319603,5.50359074,1808.6,1808.5,3.62921]
[1746006320104,1.6227,1808.7,1808.6,1.10555]
[1746006320402,6.26229074,1808.7,1808.6,2.78085]
[1746006320705,0.8301,1808.9,1808.8,1.10542]
[1746006320905,2.4528,1808.9,1808.8,1.10542]
[1746006321104,8.19775074,1808.9,1808.8,1.10542]
[1746006321309,7.09239074,1808.9,1808.8,1.10542]
[1746006321597,8.19775074,1808.9,1808.8,1.10542]
[1746006323707,7.09239074,1808.9,1808.8,1.10542]
[1746006323897,8.19775074,1808.9,1808.8,1.10542]
[1746006324303,1.10549,1808.7,1808.6,1.1055]
[1746006324605,1.10566,1808.5,1808.4,1.1056]
[1746006324803,5.74525074,1808.5,1808.4,1.1056]
[1746006325204,8.20925074,1808.5,1808.4,1.1056]
[1746006329407,8.62767993,1808.5,1808.4,1.1056]
[1746006329907,8.20925074,1808.5,1808.4,1.1056]
[1746006330108,8.62767997,1808.5,1808.4,1.1056]
[1746006330405,1.10573,1808.4,1808.3,1.10568]
[1746006330608,2.75863,1808.4,1808.3,1.10568]
[1746006330806,7.39822074,1808.4,1808.3,1.10568]
[1746006333210,1.10573,1808.3,1808.2,9.69533]
[1746006333407,1.10573,1808.3,1807.8,5.52998]
[1746006333408,2.76448,1808.2,1807.8,4.31379]
[1746006333710,5.74561074,1807.9,1807.8,4.31384]
[1746006333905,6.16484536,1807.9,1807.8,4.31384]
[1746006334307,6.16484536,1807.9,1807.8,3.2078]
[1746006334609,7.81564536,1807.9,1807.8,4.31384]
[1746006337410,7.8151269,1807.9,1807.8,4.31384]
[1746006337809,7.8151269,1807.9,1807.8,3.2078]
[1746006338311,7.39641074,1807.9,1807.8,3.2078]
[1746006338515,7.81499371,1807.9,1807.8,3.2078]
[1746006339011,1.10616,1807.6,1807.5,2.74647]
[1746006339707,2.74836,1807.6,1807.5,1.10617]
[1746006339901,2.74836,1807.6,1807.5,2.74647]
[1746006340512,1.10622,1807.5,1807.4,1.10623]
[1746006340704,1.10628,1807.4,1807.3,5.9563]
[1746006343014,2.75435,1807.5,1807.4,1.10628]
[1746006343210,2.75435,1807.5,1807.4,1.6422]
[1746006343710,1.10628,1807.4,1807.3,3.2078]
[1746006343908,1.10634,1807.3,1807.2,2.3741]
[1746006344207,1.10634,1807.3,1807.2,2.6918]
[1746006344208,2.72024,1807.3,1807.2,2.6918]
[1746006344705,7.35983074,1807.3,1807.2,2.6918]
[1746006345312,1.10646,1807.2,1807.1,1.10641]
[1746006345513,7.49035074,1807.2,1807.1,1.10641]
[1746006345714,7.49035074,1807.2,1807.0,9.2488]
[1746006345715,1.10646,1807.1,1807.0,9.2488]
[1746006345904,7.49035074,1807.1,1807.0,10.35533]
[1746006346109,7.49035074,1807.1,1807.0,6.71633]
[1746006346413,7.14589,1807.3,1807.0,6.71633]
[1746006346414,1.10646,1807.2,1807.1,1.10646]
[1746006346614,1.10646,1807.2,1807.1,2.72256]
[1746006346814,5.74605074,1807.2,1807.1,2.72256]
[1746006348513,5.74605074,1807.2,1807.1,1.6161]
[1746006348712,1.10646,1807.1,1807.0,3.2078]
[1746006348912,1.10659,1806.9,1806.8,4.31443]
[1746006349108,5.74618074,1806.9,1806.8,4.8239]
[1746006349412,5.74618074,1806.9,1806.8,3.2078]
[1746006349809,7.37068074,1806.9,1806.8,3.2078]
[1746006350806,7.37068074,1806.9,1806.8,4.31445]
[1746006353312,7.37068074,1806.9,1806.8,3.2078]
[1746006353719,7.37068074,1806.9,1806.8,4.31445]
[1746006354321,7.37068074,1806.9,1806.8,3.2078]
[1746006354514,7.37068074,1806.9,1806.8,4.31445]
[1746006354921,7.37068074,1806.9,1806.8,3.2078]
[1746006355111,7.37068074,1806.9,1806.8,4.31445]
[1746006355315,7.37068074,1806.9,1806.8,3.2078]
[1746006358915,1.10671,1806.7,1806.6,0.8719]
[1746006359223,5.74630074,1806.7,1806.6,0.8719]
[1746006359428,1.10671,1806.7,1806.6,0.8719]
[1746006359725,1.10677,1806.6,1806.5,1.6814]
[1746006359924,6.60926074,1806.6,1806.5,1.6814]
[1746006360123,8.24246074,1806.6,1806.5,1.6814]
[1746006360318,30.77242939,1806.6,1805.8,1.10722]
[1746006360621,5.74666074,1806.2,1805.8,2.76816]
[1746006360928,1.10707,1806.2,1806.1,1.10708]
[1746006361422,4.723,1806.3,1806.2,1.10702]
[1746006361619,4.0396,1806.5,1805.7,4.0327]
[1746006361827,4.63959074,1806.1,1805.7,4.0327]
[1746006362125,1.10722,1805.9,1805.8,1.10721]
[1746006362722,2.78107,1806.0,1805.9,1.1072]
[1746006362927,1.1071,1806.1,1806.0,1.10714]
[1746006363128,1.10714,1806.0,1805.9,4.93518]
[1746006363332,1.10714,1806.0,1805.9,3.828]
[1746006363824,1.10714,1806.0,1805.9,4.9352]
[1746006364220,1.1072,1805.9,1805.8,41.90722]
[1746006364928,1.10726,1805.8,1805.7,2.80168]
[1746006365326,1.10726,1805.8,1805.7,43.60168]
[1746006365525,1.6854,1805.8,1805.7,46.80948]
[1746006365721,1.6854,1805.8,1805.7,2.80168]
[1746006365917,2.79267,1805.8,1805.7,1.10732]
[1746006366534,2.79267,1805.8,1805.7,2.75442]
[1746006367031,1.6854,1805.8,1805.7,2.75442]
[1746006367932,2.79266,1805.8,1805.7,2.75442]
[1746006368627,2.79266,1805.8,1805.7,1.6471]
[1746006368826,7.43226074,1805.8,1805.7,1.10732]
[1746006369829,6.32499074,1805.8,1805.7,1.10732]
[1746006370023,1.6854,1805.8,1805.7,1.10732]
[1746006370226,1.6854,1805.8,1805.7,2.81242]
[1746006370428,1.6854,1805.8,1805.7,3.63172]
[1746006373840,6.32499074,1805.8,1805.7,3.63172]
[1746006374841,1.6854,1805.8,1805.7,3.63172]
[1746006376138,1.7307,1805.9,1805.8,1.10726]
[1746006376341,9.0698,1806.2,1806.1,1.10708]
[1746006376542,8.95441074,1806.2,1806.1,1.10708]
[1746006377142,10.68851074,1806.2,1806.1,1.10708]
[1746006378049,6.37369074,1806.2,1806.1,1.10708]
[1746006378337,4.0339,1806.4,1806.2,1.10698]
[1746006378537,7.48068074,1806.3,1806.2,1.10698]
[1746006379340,6.37369074,1806.3,1806.2,1.10698]
[1746006379541,1.7341,1806.3,1806.2,1.10698]
[1746006379938,1.7341,1806.3,1806.2,2.79208]
[1746006381649,7.48064074,1806.3,1806.2,41.90698]
[1746006382449,7.48064074,1806.3,1806.2,1.10698]
[1746006382648,6.37369074,1806.3,1806.2,1.10698]
[1746006382848,7.48064074,1806.3,1806.2,1.10698]
[1746006383938,1.10702,1806.2,1806.1,41.90703]
[1746006384142,7.42651074,1806.2,1806.1,1.10703]
[1746006384943,7.84530407,1806.2,1806.1,1.10703]
[1746006385847,1.10714,1806.0,1805.6,3.2078]
[1746006386146,4.63959074,1805.5,1805.2,8.43343834]
[1746006386348,4.63959074,1805.5,1805.4,1.10751]
[1746006386537,1.7066,1805.6,1805.5,1.10744]
[1746006386943,2.81398,1805.6,1805.5,1.98304]
[1746006387338,6.34619074,1805.6,1805.3,3.2078]
[1746006387541,6.34619074,1805.5,1805.4,1.10749]
[1746006388151,7.45363074,1805.5,1805.4,1.10749]
[1746006389353,1.10751,1805.4,1805.3,3.2078]
[1746006389553,7.44670074,1805.4,1805.3,4.31537]
[1746006389753,7.8665618,1805.4,1805.3,3.2078]
[1746006389951,7.44670074,1805.4,1805.3,3.2078]
[1746006391053,7.86642386,1805.4,1805.3,3.2078]
[1746006391255,6.75891386,1805.4,1805.0,6.8288]
[1746006391556,4.3152,1805.6,1805.5,1.10744]
[1746006391758,11.07402467,1805.6,1805.5,1.10744]
[1746006391959,9.96661526,1805.6,1805.4,2.4124]
[1746006392145,1.5788,1805.5,1805.4,3.51991]
[1746006392755,1.5788,1805.5,1805.4,44.31991]
[1746006393155,1.5788,1805.5,1805.4,48.14791]
[1746006394752,2.68624,1805.5,1805.4,48.14791]
[1746006395261,1.5788,1805.5,1805.4,48.14791]
[1746006395555,2.68624,1805.5,1805.4,48.14791]
[1746006396151,1.5788,1805.5,1805.4,48.14791]
[1746006396750,2.68624,1805.5,1805.4,48.14791]
[1746006396951,1.5788,1805.5,1805.4,48.14791]
[1746006397150,1.5788,1805.5,1805.4,7.34791]
[1746006400263,4.31511,1805.8,1805.5,1.10744]
[1746006400456,5.74691074,1805.7,1805.6,2.71784]
[1746006400655,7.45991074,1805.7,1805.6,2.71784]
[1746006400865,1.10742,1805.6,1805.5,1.10741]
[1746006401052,8.27081074,1805.6,1805.5,1.10741]
[1746006402168,4.63959074,1805.6,1805.5,1.10741]
[1746006402463,1.10733,1805.7,1805.6,1.10732]
[1746006402853,6.16606649,1805.7,1805.6,1.10732]
[1746006403257,7.85906649,1805.7,1805.6,1.10732]
[1746006403463,7.85903831,1805.7,1805.6,1.10732]
[1746006403661,7.43992074,1805.7,1805.6,1.10732]
[1746006403863,7.85906096,1805.7,1805.6,1.10732]
[1746006404165,6.75173096,1805.7,1805.3,43.56889]
[1746006404365,4.63959074,1805.5,1805.4,1.10751]
[1746006404866,6.22379074,1805.5,1805.4,1.10751]
[1746006405467,6.22379074,1805.5,1805.4,2.81781]
[1746006405664,5.1459,1805.8,1805.7,1.10732]
[1746006405969,7.14916804,1805.8,1805.7,1.10732]
[1746006406263,1.5842,1805.8,1805.7,1.10732]
[1746006406468,1.5842,1805.8,1805.7,4.44692]
[1746006406661,3.622,1806.0,1805.9,1.1072]
[1746006406869,3.11039933,1806.0,1805.9,1.1072]
[1746006407061,7.74997236,1806.0,1805.9,1.1072]
[1746006407266,0.41904162,1806.0,1805.9,1.1072]
[1746006408172,0.41904162,1806.0,1805.9,4.9352]
[1746006409070,2.4,1806.1,1806.0,1.10714]
[1746006409270,2.81911965,1806.1,1806.0,2.81674]
[1746006409464,8.56579039,1806.1,1806.0,2.81674]
[1746006409869,7.45871039,1806.1,1806.0,2.81674]
[1746006410370,8.56579039,1806.1,1806.0,2.81674]
[1746006410769,8.56579039,1806.1,1806.0,1.10714]
[1746006412064,7.45871039,1806.1,1806.0,1.10714]
[1746006412563,8.56579039,1806.1,1806.0,1.10714]
[1746006412860,8.56636693,1806.1,1806.0,1.10714]
[1746006415073,1.1072,1805.9,1805.8,4.75419]
[1746006415370,5.05928693,1805.9,1805.8,4.75419]
[1746006415872,6.72188693,1805.9,1805.8,4.75419]
[1746006416068,2.08229619,1805.9,1805.8,10.18349]
[1746006416268,2.08229619,1805.9,1805.8,8.58219]
[1746006416571,2.78958,1806.1,1806.0,1.10714]
[1746006416773,4.82810694,1806.1,1806.0,1.10714]
[1746006416968,9.46769768,1806.1,1806.0,1.10714]
[1746006417169,9.04757074,1806.1,1806.0,1.10714]
[1746006417872,9.46769958,1806.1,1806.0,1.10714]
[1746006418268,9.46770375,1806.1,1806.0,1.10714]
[1746006418462,1.10718,1806.0,1805.9,1.10715]
[1746006418764,7.78530624,1806.0,1805.9,1.10715]
[1746006419472,1.1072,1805.9,1805.8,4.75422]
[1746006419674,7.79522624,1805.9,1805.8,1.10722]
[1746006419868,7.37509074,1805.9,1805.8,1.10722]
[1746006420675,7.79526413,1805.9,1805.8,1.10722]
[1746006420877,3.15567339,1805.9,1805.8,1.10722]
[1746006421276,1.1073,1805.8,1805.7,1.10727]
[1746006421471,8.64426413,1805.8,1805.7,1.10727]
[1746006421671,1.10736,1805.7,1805.6,1.10733]
[1746006421871,7.09589074,1805.7,1805.6,1.10733]
[1746006423481,8.20321074,1805.7,1805.6,1.10733]
[1746006423980,6.26789074,1805.7,1805.6,1.10733]
[1746006424179,6.26789074,1805.7,1805.6,2.74273]
[1746006424180,1.6283,1805.7,1805.6,2.74273]
[1746006426778,0.8489,1805.8,1805.7,1.10732]
[1746006426975,5.48849074,1805.8,1805.7,2.72982]
[1746006427181,7.11429074,1805.8,1805.7,2.72982]
[1746006430383,1.10736,1805.7,1805.6,1.10733]
[1746006430588,7.89313349,1805.7,1805.6,1.10733]
[1746006430989,7.8931398,1805.7,1805.6,1.10733]
[1746006431488,7.47265074,1805.7,1805.6,1.10733]
[1746006432492,7.89322716,1805.7,1805.6,1.10733]
[1746006434386,7.89322716,1805.7,1805.6,1.10738]
[1746006434587,1.1074,1805.6,1805.5,1.10738]
[1746006434790,3.20338963,1805.6,1805.5,1.10738]
[1746006434991,7.84296037,1805.6,1805.5,1.10738]
[1746006435193,6.73558037,1805.6,1805.5,1.10738]
[1746006435797,7.84296037,1805.6,1805.5,1.10738]
[1746006436298,6.73558037,1805.6,1805.5,1.10738]
[1746006436496,6.73558037,1805.6,1805.5,2.78878]
[1746006436692,6.73550506,1805.6,1805.5,2.78878]
[1746006437096,6.73550506,1805.6,1805.5,6.61678]
[1746006437301,4.0322,1805.9,1805.8,1.10726]
[1746006437504,2.86738094,1805.9,1805.8,1.10726]
[1746006437705,7.50697168,1805.9,1805.8,1.10726]
[1746006438193,7.50697168,1805.9,1805.8,4.93526]
[1746006438606,7.50694135,1805.9,1805.8,4.93526]
[1746006439503,2.86735061,1805.9,1805.8,4.93526]
[1746006439804,7.50694135,1805.9,1805.8,4.93526]
[1746006440507,7.50697145,1805.9,1805.8,4.93526]
[1746006441202,7.50697145,1805.9,1805.8,1.10726]
[1746006442005,7.08639074,1805.9,1805.8,1.10726]
[1746006442205,7.08639074,1805.9,1805.8,4.93526]
[1746006443208,7.50695726,1805.9,1805.8,4.93526]
[1746006444208,7.50695726,1805.9,1805.8,1.10726]
[1746006444408,8.61415726,1805.9,1805.8,1.10726]
[1746006445408,7.50695726,1805.9,1805.8,1.10726]
[1746006445910,8.61415726,1805.9,1805.8,1.10726]
[1746006446110,7.50695726,1805.9,1805.8,1.10726]
[1746006446912,6.68255726,1805.9,1805.8,2.77016]
[1746006448110,6.68255726,1805.9,1805.8,6.59816]
[1746006448310,6.68242548,1805.9,1805.8,6.59816]
[1746006448703,6.68242445,1805.9,1805.8,6.59816]
[1746006449201,6.68242445,1805.9,1805.8,4.93526]
[1746006449405,2.04283371,1805.9,1805.8,4.93526]
[1746006449801,2.04283371,1805.9,1805.8,6.66646]
[1746006450224,2.04283371,1805.9,1805.8,2.83846]
[1746006450706,6.68242445,1805.9,1805.8,2.83846]
[1746006452212,6.68235018,1805.9,1805.8,2.83846]
[1746006453016,6.68235018,1805.9,1805.8,1.10726]
[1746006455318,7.78955018,1805.9,1805.8,1.10726]
[1746006456010,7.78951463,1805.9,1805.8,1.10726]
[1746006456211,7.78951462,1805.9,1805.8,1.10726]
[1746006457115,1.10732,1805.7,1805.6,4.31512]
[1746006457321,1.10732,1805.7,1805.6,4.31518]
[1746006457322,6.16723462,1805.7,1805.6,4.31518]
[1746006457515,5.05991462,1805.7,1805.6,4.31518]
[1746006457717,7.62921462,1805.7,1805.6,4.31518]
[1746006457920,2.5693,1805.7,1805.6,4.31518]
[1746006458221,1.7303,1805.7,1805.6,5.96548]
[1746006459116,7.8975853,1805.7,1805.6,3.2078]
[1746006459322,6.7902653,1805.7,1805.6,4.31518]
[1746006459823,6.79026522,1805.7,1805.6,4.31518]
[1746006460222,7.89758522,1805.7,1805.6,4.31518]
[1746006460425,2.15067448,1805.7,1805.6,4.31518]
[1746006460923,1.7303,1805.7,1805.6,4.31518]
[1746006462821,2.15068178,1805.7,1805.6,4.31518]
[1746006463121,2.15068178,1805.7,1805.6,3.2078]
[1746006463317,1.10738,1805.6,1805.5,4.9354]
[1746006463518,8.77555252,1805.6,1805.5,4.9354]
[1746006464118,8.77555252,1805.6,1805.5,1.1074]
[1746006464426,1.10744,1805.5,1805.4,4.31525]
[1746006464626,8.76761252,1805.5,1805.4,4.31531]
[1746006465630,8.76762411,1805.5,1805.4,4.31531]
[1746006466723,7.66018411,1805.5,1805.4,4.31531]
[1746006467024,8.76762411,1805.5,1805.4,4.31531]
[1746006467626,8.76762411,1805.5,1805.4,3.2078]
[1746006467824,8.76762411,1805.5,1805.4,4.31531]
[1746006469017,8.76762411,1805.5,1805.4,3.2078]
[1746006469224,8.76762411,1805.5,1805.3,1.10756]
[1746006469225,1.10751,1805.4,1805.3,1.10756]
[1746006469420,1.10757,1805.3,1805.2,7.94737]
[1746006469626,6.98259772,1805.3,1805.2,7.94737]
[1746006469831,8.57139772,1805.3,1805.2,4.31537]
[1746006470033,7.46382772,1805.3,1805.2,4.31537]
[1746006470426,7.04369074,1805.3,1805.2,4.31537]
[1746006470734,7.46369343,1805.3,1805.2,4.31537]
[1746006471040,8.57126343,1805.3,1805.2,3.2078]
[1746006471231,8.57125817,1805.3,1805.2,4.31543]
[1746006471831,8.15126074,1805.3,1805.2,4.31543]
[1746006472027,1.5888,1805.3,1805.2,4.31543]
[1746006472934,2.441,1805.3,1805.2,4.31543]
[1746006474232,7.08059074,1805.3,1805.2,4.31543]
[1746006474534,8.18816074,1805.3,1805.2,4.31543]
[1746006474736,8.18816074,1805.3,1805.2,1.10763]
[1746006475536,7.08059074,1805.3,1805.2,1.10763]
[1746006476137,2.441,1805.3,1805.2,1.10763]
[1746006476737,3.54857,1805.3,1805.2,1.10763]
[1746006477533,2.441,1805.3,1805.1,1.10764]
[1746006477737,2.68764,1805.2,1805.1,1.10769]
[1746006477937,3.48594,1805.2,1805.1,1.10769]
[1746006478838,2.3783,1805.2,1805.1,1.10769]
[1746006479942,1.58,1805.2,1805.1,1.10769]
[1746006480444,1.58,1805.2,1805.1,2.76059]
[1746006482841,0.8698,1805.4,1805.1,1.6529]
[1746006483044,6.28019074,1805.3,1805.2,2.76053]
[1746006484344,1.6406,1805.3,1805.2,2.76053]
[1746006484643,0.7962,1805.4,1805.3,1.10757]
[1746006484939,2.5057,1805.4,1805.3,3.55397]
[1746006485140,3.2078,1805.5,1805.4,1.10751]
[1746006485341,3.6275487,1805.5,1805.4,2.71941]
[1746006485541,9.97663944,1805.5,1805.4,2.71941]
[1746006485742,9.55689074,1805.5,1805.4,2.71941]
[1746006485942,1.10751,1805.4,1805.3,4.93552]
[1746006486244,6.34909074,1805.4,1805.3,1.10752]
[1746006487442,1.7095,1805.4,1805.3,1.10752]
[1746006488946,2.12952079,1805.4,1805.3,1.10752]
[1746006489651,1.7095,1805.4,1805.3,1.10752]
[1746006490149,2.12957418,1805.4,1805.3,1.10752]
[1746006490549,2.12963068,1805.4,1805.3,1.10752]
[1746006490748,1.7095,1805.4,1805.3,1.10752]
[1746006491552,2.12975205,1805.4,1805.3,1.10752]
[1746006491849,1.7095,1805.4,1805.3,1.10752]
[1746006492249,2.12974625,1805.4,1805.3,1.10752]
[1746006492653,2.1298893,1805.4,1805.3,1.10752]
[1746006492853,6.76948004,1805.4,1805.3,1.10752]
[1746006493753,6.76962654,1805.4,1805.3,1.10752]
[1746006495754,2.13008631,1805.4,1805.3,1.10752]
[1746006496149,2.13008631,1805.4,1805.3,7.35832]
[1746006496447,2.13008631,1805.4,1805.3,8.15322]
[1746006497151,2.13008631,1805.4,1805.3,4.32522]
[1746006497349,2.72412,1805.6,1805.3,4.32522]
[1746006497555,1.6042,1805.6,1805.5,1.10744]
[1746006497852,2.02480197,1805.6,1805.5,1.10744]
[1746006498043,2.02480197,1805.6,1805.5,2.71934]
[1746006498245,2.02480197,1805.6,1805.5,6.54734]
[1746006498455,0.42060197,1805.6,1805.5,6.54734]
[1746006498648,1.7497,1805.8,1805.7,1.10732]
[1746006498850,0.42051937,1805.8,1805.7,1.10732]
[1746006499348,0.42051937,1805.8,1805.7,6.55572]
[1746006499548,1.7497,1805.9,1805.8,1.10726]
[1746006499753,2.16996259,1805.9,1805.8,1.10726]
[1746006500749,3.27716259,1805.9,1805.8,1.10726]
[1746006500962,3.02026259,1805.9,1805.8,1.10726]
[1746006501444,4.12714665,1805.9,1805.8,1.10726]
[1746006501645,3.01994665,1805.9,1805.8,1.10726]
[1746006502158,2.6,1805.9,1805.8,1.10726]
[1746006503758,1.7497,1805.9,1805.8,1.10726]
[1746006503973,0.803,1806.2,1806.1,1.10708]
[1746006504150,4.80537198,1806.2,1806.1,1.10708]
[1746006504351,3.69835198,1806.2,1806.1,1.10708]
[1746006504551,2.89535198,1806.2,1806.1,1.10708]
[1746006505858,4.00237198,1806.2,1806.1,1.10708]
[1746006506759,4.00237198,1806.2,1806.0,1.10709]
[1746006506760,1.10708,1806.1,1806.0,1.10709]
[1746006506962,3.55208,1806.1,1806.0,1.10709]
[1746006507658,2.445,1806.1,1805.8,9.58394]
[1746006507859,1.7264,1806.0,1805.8,3.608]
[1746006508054,2.83358,1806.0,1805.9,1.1072]
[1746006510159,3.25284699,1806.0,1805.9,1.1072]
[1746006510962,1.10724,1805.9,1805.8,1.10721]
[1746006511164,3.56334,1805.9,1805.8,1.10721]
[1746006514770,8.20293074,1805.9,1805.8,1.10721]
[1746006515967,8.62240613,1805.9,1805.8,1.10721]
[1746006518569,8.6225108,1805.9,1805.8,1.10721]
[1746006520068,8.20293074,1805.9,1805.8,1.10721]
[1746006520971,1.10726,1805.8,1805.7,2.77747]
[1746006521161,7.32535074,1805.8,1805.7,1.10727]
[1746006521365,3.49676,1805.8,1805.7,1.10727]
[1746006524173,2.80954338,1805.8,1805.7,1.10727]
[1746006524470,2.80954334,1805.8,1805.7,1.10727]
[1746006525773,7.44913408,1805.8,1805.7,1.10727]
[1746006528175,7.44971275,1805.8,1805.7,1.10727]
[1746006529170,8.55697275,1805.8,1805.7,1.10727]
[1746006529370,8.55697275,1805.8,1805.6,4.31513]
[1746006529371,1.10732,1805.7,1805.6,4.31513]
[1746006529573,6.63801275,1805.7,1805.6,4.31513]
[1746006529870,6.21739074,1805.7,1805.6,4.31513]
[1746006530564,6.63804885,1805.7,1805.6,4.31513]
[1746006531178,6.63804885,1805.7,1805.6,6.03523]
[1746006531370,1.99845811,1805.7,1805.6,6.82843]
[1746006532081,1.5778,1805.7,1805.6,6.82843]
[1746006532279,1.99838818,1805.7,1805.6,6.82843]
[1746006533170,7.74529892,1805.7,1805.6,4.31513]
[1746006533973,7.74529892,1805.7,1805.5,3.828]
[1746006533974,1.10738,1805.6,1805.5,3.828]
[1746006534180,1.10744,1805.5,1805.4,4.71445]
[1746006534373,6.58453074,1805.5,1805.4,4.71445]
[1746006534681,7.18649074,1805.5,1805.4,4.71445]
[1746006535179,8.29393074,1805.5,1805.4,1.10745]
[1746006535677,7.18649074,1805.5,1805.4,1.10745]
[1746006536072,7.60716886,1805.5,1805.4,1.10745]
[1746006536976,8.71460886,1805.5,1805.4,1.10745]
[1746006537379,6.76966886,1805.5,1805.4,1.10745]
[1746006537878,6.76966886,1805.5,1805.4,2.75005]
[1746006538274,2.13007812,1805.5,1805.4,2.75005]
[1746006539177,2.13007812,1805.5,1805.4,6.57805]
[1746006539575,1.7094,1805.5,1805.4,6.57805]
[1746006540978,1.7094,1805.5,1805.4,4.93545]
[1746006541372,6.34899074,1805.5,1805.4,4.93545]
[1746006542777,6.76937864,1805.5,1805.4,4.93545]
[1746006543180,2.1297879,1805.5,1805.4,4.93545]
[1746006543779,2.1297879,1805.5,1805.4,6.62125]
[1746006544178,1.7094,1805.5,1805.4,6.62125]
[1746006547383,2.12970451,1805.5,1805.4,6.62125]
[1746006547882,1.7094,1805.5,1805.4,6.62125]
[1746006548880,6.34899074,1805.5,1805.4,6.62125]
[1746006549577,6.76928509,1805.5,1805.4,6.62125]
[1746006549783,7.87672509,1805.5,1805.4,4.93545]
[1746006550179,7.87672509,1805.5,1805.4,1.10745]
[1746006550483,6.76928509,1805.5,1805.4,1.10745]
[1746006551582,6.76933899,1805.5,1805.4,1.10745]
[1746006552483,6.76934323,1805.5,1805.4,1.10745]
[1746006558286,6.76957712,1805.5,1805.4,1.10745]
[1746006559487,2.12998638,1805.5,1805.4,1.10745]
[1746006559674,6.76957712,1805.5,1805.4,1.10745]
[1746006560184,6.76964758,1805.5,1805.4,1.10745]
[1746006561285,6.76964758,1805.5,1805.4,2.79445]
[1746006561681,7.87708758,1805.5,1805.4,1.10745]
[1746006562287,7.87719128,1805.5,1805.4,1.10745]
[1746006563988,7.8773683,1805.5,1805.4,1.10745]
[1746006565890,7.87747144,1805.5,1805.4,1.10745]
[1746006567285,1.10756,1805.4,1805.3,1.10751]
[1746006567487,8.68529144,1805.4,1805.3,1.10751]
[1746006567788,8.68529009,1805.4,1805.3,1.10751]
[1746006568390,1.10757,1805.3,1805.2,4.31539]
[1746006568683,8.76340009,1805.3,1805.2,4.31539]
[1746006569592,8.76340009,1805.3,1805.2,1.10759]
[1746006573488,8.7628986,1805.3,1805.2,1.10759]
[1746006575389,8.34236074,1805.3,1805.2,1.10759]
[1746006575587,8.76282339,1805.3,1805.2,1.10759]
[1746006576901,7.65525339,1805.3,1805.2,1.10759]
[1746006579305,7.65515961,1805.3,1805.2,1.10759]
[1746006580605,2.14726887,1805.3,1805.2,2.71709]
[1746006580805,0.42036887,1805.3,1805.2,3.51119]
[1746006581195,1.6408,1805.5,1805.4,1.10751]
[1746006581399,2.06114648,1805.5,1805.4,1.10751]
[1746006581603,0.42034648,1805.5,1805.4,1.10751]
[1746006581806,0.42034648,1805.5,1805.4,2.77351]
[1746006582106,0.42034648,1805.5,1805.4,6.60151]
[1746006583105,5.95599,1805.6,1805.5,1.10744]
[1746006583308,6.37635532,1805.6,1805.5,1.10744]
[1746006583707,11.01594606,1805.6,1805.5,1.10744]
[1746006584701,6.37635532,1805.6,1805.5,1.10744]
[1746006584903,11.01594606,1805.6,1805.5,1.10744]
[1746006585111,11.0159585,1805.6,1805.5,1.10744]
[1746006585504,7.8081585,1805.6,1805.5,1.10744]
[1746006585696,6.7007685,1805.6,1805.5,1.10744]
[1746006588714,7.8081485,1805.6,1805.5,1.10744]
[1746006588912,6.7008012,1805.6,1805.5,1.10744]
[1746006589315,6.70081175,1805.6,1805.5,1.10744]
[1746006589716,7.80819175,1805.6,1805.5,1.10744]
[1746006590312,6.70081175,1805.6,1805.5,1.10744]
[1746006590614,6.70079329,1805.6,1805.5,1.10744]
[1746006590806,7.80817329,1805.6,1805.5,1.10744]
[1746006591314,7.38777074,1805.6,1805.5,1.10744]
[1746006592018,7.80820502,1805.6,1805.5,1.10744]
[1746006592716,7.80819534,1805.6,1805.5,1.10744]
[1746006593317,6.70081534,1805.6,1805.5,1.10744]
[1746006594017,7.80819534,1805.6,1805.5,1.10744]
[1746006594516,7.80817562,1805.6,1805.5,1.10744]
[1746006596314,7.80814917,1805.6,1805.5,1.10744]
[1746006597116,7.38777074,1805.6,1805.5,1.10744]
[1746006597815,7.80814081,1805.6,1805.5,1.10744]
[1746006598317,7.80813126,1805.6,1805.5,1.10744]
[1746006599021,6.70075126,1805.6,1805.5,1.10744]
[1746006599411,7.80813126,1805.6,1805.5,1.10744]
[1746006600016,7.80811633,1805.6,1805.5,1.10744]
[1746006600715,6.70073633,1805.6,1805.5,1.10744]
[1746006601322,6.70076872,1805.6,1805.5,1.10744]
[1746006602918,6.28039074,1805.6,1805.5,1.10744]
[1746006603116,6.70077241,1805.6,1805.5,1.10744]
[1746006605822,7.80815241,1805.6,1805.5,1.10744]
[1746006606626,7.80830669,1805.6,1805.5,1.10744]
[1746006608325,7.80844751,1805.6,1805.5,1.10744]
[1746006609018,12.80844751,1805.6,1805.5,1.10744]
[1746006609226,1.10757,1805.4,1805.3,1.10754]
[1746006609522,5.06026751,1805.4,1805.3,1.10754]
[1746006609922,7.62876751,1805.4,1805.3,1.10754]
[1746006611723,7.62904811,1805.4,1805.3,1.10754]
[1746006611929,11.94435811,1805.4,1805.3,1.10754]
[1746006612125,7.6290674,1805.4,1805.3,1.10754]
[1746006612523,8.7365774,1805.4,1805.3,1.10754]
[1746006613828,1.10758,1805.3,1805.2,1.10758]